bitfinex-derivatives/quotes_ETHF0:USTF0_20241024
["timestamp","ask_amount","ask_price","bid_price","bid_amount"]
[1729799355637,2.56316484,2539.8,2539.7,0.39396]
[1729799356131,2.95710484,2539.8,2539.7,0.39396]
[1729799357437,2.56316484,2539.8,2539.7,0.39396]
[1729799358739,2.95710484,2539.8,2539.7,0.39396]
[1729799359444,0.39397,2539.7,2539.6,0.39397]
[1729799359642,1.27716484,2539.7,2539.4,1.3484]
[1729799359840,1.27716484,2539.5,2539.4,0.39401]
[1729799361143,1.348,2539.6,2539.5,0.39399]
[1729799361444,2.62516484,2539.6,2539.5,0.39399]
[1729799364548,1.27716484,2539.6,2539.5,0.39399]
[1729799364843,3.2078,2540.0,2539.5,4.33159]
[1729799365149,1.3,2539.9,2539.8,0.39394]
[1729799366841,2.57716484,2539.9,2539.8,0.39394]
[1729799367448,1.3,2539.9,2539.8,0.39394]
[1729799368052,1.27716484,2539.9,2539.8,0.39394]
[1729799369951,0.39384,2540.5,2539.8,4.92247]
[1729799370247,0.98452,2540.8,2539.8,4.92247]
[1729799370248,1.3756,2540.4,2540.3,0.39387]
[1729799370457,1.2952,2540.8,2540.7,0.3938]
[1729799370751,3.42668914,2540.9,2540.8,0.39379]
[1729799370950,3.42668914,2540.9,2540.6,1.3522]
[1729799370951,3.03290914,2540.9,2540.6,1.3522]
[1729799371145,0.39379,2540.8,2540.7,0.3938]
[1729799371343,1.67095484,2540.8,2540.7,0.3938]
[1729799371744,3.03290914,2540.9,2540.6,1.3522]
[1729799371946,3.03290914,2540.9,2540.8,0.39379]
[1729799372145,2.7115,2540.9,2540.8,0.39379]
[1729799372352,1.27716484,2540.9,2540.8,0.39379]
[1729799375950,1.27716484,2540.9,2540.6,1.3522]
[1729799375951,0.3938,2540.8,2540.6,0.3938]
[1729799376156,3.04316484,2540.7,2540.6,0.3938]
[1729799376455,2.64936484,2540.7,2540.6,0.3938]
[1729799378355,1.2849,2540.8,2540.7,0.3938]
[1729799378552,40.8,2541.3,2541.1,0.39374]
[1729799378553,1.3304,2541.2,2541.1,0.39374]
[1729799378753,0.39366,2541.6,2541.5,0.39367]
[1729799379055,1.2785,2541.6,2541.5,0.39367]
[1729799379443,4.4863,2541.6,2541.2,5.8508]
[1729799379649,1.27716484,2541.3,2541.2,6.24453]
[1729799380355,1.27716484,2541.3,2541.2,3.03673]
[1729799380552,1.27716484,2541.3,2541.2,0.39373]
[1729799381257,1.67087484,2541.3,2541.1,0.39373]
[1729799381561,3.89526484,2541.2,2541.1,0.39373]
[1729799381754,5.17242968,2541.2,2540.9,2.6532]
[1729799381954,1.27716484,2541.0,2540.9,3.04697]
[1729799382353,2.55432968,2541.0,2540.7,1.354]
[1729799382549,1.27716484,2540.8,2540.3,4.5532]
[1729799382752,1.27716484,2540.4,2540.3,0.39385]
[1729799383054,1.67102484,2540.4,2540.3,0.39387]
[1729799383357,1.27716484,2540.4,2540.3,0.39387]
[1729799383855,5.8259,2540.7,2540.3,5.21396484]
[1729799384156,5.8259,2540.7,2540.6,0.39382]
[1729799384361,8.59264146,2540.7,2540.6,0.39382]
[1729799384752,2.76674146,2540.7,2540.6,0.39382]
[1729799385660,2.76674146,2540.7,2540.6,2.94632]
[1729799385958,2.76674146,2540.9,2540.8,0.39379]
[1729799386858,4.12624146,2540.9,2540.8,0.39379]
[1729799388254,4.52002146,2540.9,2540.8,0.39379]
[1729799388454,4.52001146,2540.9,2540.8,0.39379]
[1729799388854,4.12624146,2540.9,2540.8,0.39379]
[1729799389751,4.12624146,2540.9,2540.4,1.3526]
[1729799390059,1.64869,2540.8,2540.7,0.3938]
[1729799390261,1.2549,2540.8,2540.7,0.3938]
[1729799390563,1.6487,2540.8,2540.6,0.39381]
[1729799391159,1.6487,2540.8,2540.7,0.3938]
[1729799391355,4.41544146,2540.8,2540.7,0.3938]
[1729799391552,1.3595,2540.9,2540.8,0.39379]
[1729799391859,2.76674146,2540.8,2540.7,0.3938]
[1729799394351,2.76674146,2540.8,2540.5,4.5281]
[1729799394559,1.3595,2540.9,2540.6,0.39381]
[1729799394560,0.39381,2540.7,2540.6,0.39381]
[1729799394758,3.2078,2540.8,2540.1,1.3068]
[1729799395062,0.39385,2540.4,2540.3,0.39386]
[1729799395555,2.7006,2540.5,2540.1,1.3068]
[1729799395754,3.16061146,2540.3,2540.2,0.39387]
[1729799396058,2.76674146,2540.3,2540.2,0.39387]
[1729799396656,3.16061146,2540.3,2540.2,0.39387]
[1729799397363,3.16061146,2540.3,2539.8,3.60173]
[1729799397364,0.39392,2540.0,2539.8,3.60173]
[1729799397558,3.16067146,2539.9,2539.7,1.2443]
[1729799397763,5.46734146,2539.9,2539.8,0.39394]
[1729799397967,5.46734146,2539.9,2539.6,0.39396]
[1729799398261,2.76674146,2539.6,2539.5,1.71449]
[1729799399264,5.46734146,2539.9,2539.5,1.71449]
[1729799399464,5.46734146,2539.9,2539.8,0.39394]
[1729799399663,0.39396,2539.8,2539.6,0.39396]
[1729799399863,5.46734146,2539.9,2539.1,3.2078]
[1729799399864,2.76674146,2539.7,2539.1,3.2078]
[1729799400057,2.76674146,2539.7,2539.1,6.79222]
[1729799400058,7.17673188,2539.7,2539.1,6.79222]
[1729799400257,7.17673188,2539.7,2539.6,0.39397]
[1729799400258,4.40999042,2539.7,2539.6,0.39397]
[1729799400462,0.39394,2539.9,2539.8,0.39394]
[1729799400657,2.76674146,2539.8,2539.7,0.39395]
[1729799400857,6.36846146,2540.0,2539.9,0.39393]
[1729799401062,6.36845146,2540.0,2539.9,0.39393]
[1729799401467,5.97454146,2540.0,2539.8,0.39394]
[1729799401766,5.97454146,2540.0,2539.9,0.39393]
[1729799401961,2.76674146,2540.0,2539.9,0.39393]
[1729799402164,3.2078,2540.3,2540.2,0.39388]
[1729799402359,1.3318,2540.5,2540.4,0.39385]
[1729799402555,3.16055146,2540.7,2540.3,2.5777]
[1729799402556,2.76674146,2540.7,2540.3,2.5777]
[1729799402760,2.76674146,2540.7,2540.3,3.56236]
[1729799402956,2.76674146,2540.7,2540.6,0.39382]
[1729799404363,3.2078,2540.8,2540.4,0.98462]
[1729799404667,2.76674146,2540.9,2540.8,0.39379]
[1729799405175,2.76674146,2540.9,2540.7,0.39379]
[1729799405359,2.76674146,2540.9,2540.5,1.3118]
[1729799405668,2.76674146,2540.6,2540.5,0.39382]
[1729799406064,6.70274146,2540.6,2540.3,3.60166]
[1729799406268,2.76674146,2540.4,2540.3,0.39387]
[1729799406770,4.53977146,2540.6,2540.5,0.39383]
[1729799406967,4.14594146,2540.6,2540.5,0.39383]
[1729799407173,1.3792,2540.6,2540.5,0.39383]
[1729799407467,1.3255,2540.7,2540.6,0.39382]
[1729799407672,2.76674146,2540.8,2540.7,0.3938]
[1729799408472,4.10384146,2541.0,2540.9,0.39377]
[1729799408663,1.3371,2541.0,2540.9,0.39377]
[1729799409168,4.10384146,2541.0,2540.9,0.39377]
[1729799409369,4.49760146,2541.0,2540.9,0.39377]
[1729799409570,4.49760146,2541.0,2540.8,0.39378]
[1729799409872,4.10384146,2541.0,2540.5,6.82377]
[1729799410263,4.10384146,2541.0,2540.9,0.39377]
[1729799411271,4.49760146,2541.0,2540.5,6.82377]
[1729799411477,1.73086,2541.0,2540.8,0.39378]
[1729799411675,2.76674146,2540.9,2540.8,0.39378]
[1729799411883,0.39379,2540.8,2540.6,0.39381]
[1729799412169,2.76674146,2540.7,2540.6,0.39381]
[1729799414378,3.16054146,2540.8,2540.5,2.6314]
[1729799414677,0.39381,2540.7,2540.6,0.39381]
[1729799415373,2.76674146,2540.8,2540.5,2.6314]
[1729799415575,1.3371,2541.0,2540.9,0.39377]
[1729799415777,0.39378,2540.9,2540.8,0.39378]
[1729799415974,4.49760146,2541.0,2540.9,0.39377]
[1729799416172,4.10384146,2541.0,2540.9,0.39377]
[1729799416372,4.10384146,2541.0,2540.5,3.61599]
[1729799416580,0.39378,2540.9,2540.8,0.39378]
[1729799416775,4.49761146,2541.0,2540.8,0.39378]
[1729799416983,4.49761146,2541.0,2540.9,0.39377]
[1729799417185,4.10384146,2541.0,2540.9,0.39377]
[1729799418085,4.10384146,2541.0,2540.8,0.39378]
[1729799418086,0.39378,2540.9,2540.8,0.39378]
[1729799418279,4.49761146,2541.0,2540.8,0.39378]
[1729799418480,0.39378,2540.9,2540.7,0.39379]
[1729799418677,0.39378,2540.9,2540.8,0.39379]
[1729799419472,0.39379,2540.8,2540.7,0.39379]
[1729799419679,7.26544146,2540.8,2540.5,0.39382]
[1729799419881,2.76674146,2540.6,2540.3,1.2503]
[1729799420075,1.3611,2540.5,2540.4,0.39384]
[1729799420281,1.75493,2540.5,2540.4,0.39384]
[1729799420487,1.75493,2540.5,2540.2,4.5097]
[1729799420488,5.2971,2540.5,2540.2,3.2078]
[1729799420684,5.2971,2540.5,2539.9,3.2078]
[1729799420685,2.76674146,2540.4,2539.9,3.2078]
[1729799420988,0.39389,2540.2,2540.1,0.39389]
[1729799421175,5.97454146,2540.2,2539.6,4.5115]
[1729799421381,0.39393,2539.9,2539.8,0.39393]
[1729799421682,3.16066146,2540.0,2539.9,0.39393]
[1729799421876,4.12784146,2540.0,2539.9,0.39393]
[1729799422683,8.45855146,2540.0,2539.9,0.39393]
[1729799422883,4.12784146,2540.0,2539.9,0.39393]
[1729799423088,8.06464146,2540.0,2539.6,4.5115]
[1729799423286,4.12784146,2540.0,2539.6,4.5115]
[1729799423885,1.3796,2540.1,2539.6,4.5115]
[1729799424190,3.2078,2540.2,2540.1,0.3939]
[1729799424587,6.36842146,2540.2,2540.1,0.3939]
[1729799424782,6.36842146,2540.2,2539.8,0.98484]
[1729799425094,5.97454146,2540.2,2540.1,0.3939]
[1729799429291,5.97454146,2540.2,2539.8,0.98486]
[1729799429602,1.7225,2540.1,2540.0,0.3939]
[1729799429793,1.3286,2540.1,2540.0,0.3939]
[1729799430997,4.09534146,2540.1,2539.7,0.9849]
[1729799431200,4.09534146,2540.1,2540.0,0.39391]
[1729799431394,4.48924146,2540.1,2540.0,0.39391]
[1729799432100,4.09534146,2540.1,2540.0,0.39391]
[1729799433998,4.48924146,2540.1,2540.0,0.39391]
[1729799434198,4.09534146,2540.1,2540.0,0.39391]
[1729799434803,4.48924146,2540.1,2540.0,0.39391]
[1729799435599,5.86145146,2540.1,2540.0,0.39391]
[1729799436709,9.79825146,2540.1,2540.0,0.39391]
[1729799438394,9.40434146,2540.1,2540.0,0.39391]
[1729799438594,9.79824146,2540.1,2540.0,0.39391]
[1729799438999,9.40434146,2540.1,2540.0,0.39391]
[1729799439399,5.46754146,2540.1,2540.0,0.39391]
[1729799439701,9.79824146,2540.1,2540.0,0.39391]
[1729799440999,9.40434146,2540.1,2540.0,0.39391]
[1729799441197,1.3286,2540.1,2540.0,0.39391]
[1729799453307,4.09534146,2540.1,2540.0,0.39391]
[1729799454209,1.3286,2540.1,2540.0,0.39391]
[1729799454411,7.32394146,2540.3,2540.2,0.39388]
[1729799459415,7.71781146,2540.3,2540.2,0.39388]
[1729799460516,7.32394146,2540.3,2540.2,0.39388]
[1729799460820,7.71781146,2540.3,2540.2,0.39388]
[1729799461523,7.32394146,2540.3,2540.2,0.39388]
[1729799461723,4.11614146,2540.3,2540.2,0.39388]
[1729799466316,2.62655246,2540.3,2540.2,0.39388]
[1729799467320,2.62655246,2540.3,2539.9,2.36509]
[1729799467521,1.2612,2540.7,2539.9,2.36509]
[1729799467522,3.2078,2541.3,2540.3,0.98467]
[1729799467818,1.27715246,2540.6,2540.4,8.29945246]
[1729799468021,1.27715246,2540.6,2540.5,0.39383]
[1729799470423,4.12345445,2540.9,2540.8,0.39379]
[1729799471122,4.51722445,2540.9,2540.8,0.39379]
[1729799471321,4.12345445,2540.9,2540.8,0.39379]
[1729799471626,4.12345445,2540.9,2540.5,0.98459]
[1729799471920,2.76665445,2540.7,2540.4,3.2078]
[1729799472119,0.39383,2540.6,2540.5,0.39383]
[1729799472524,4.49596445,2540.7,2540.6,0.39382]
[1729799473418,4.49597445,2540.7,2540.6,0.39382]
[1729799473617,2.76665445,2540.7,2540.6,0.39382]
[1729799478022,7.33125445,2540.9,2540.8,0.39379]
[1729799478633,4.12345445,2540.9,2540.8,0.39379]
[1729799482230,2.76665445,2540.9,2540.8,0.39379]
[1729799483223,4.04675445,2541.1,2541.0,0.39376]
[1729799485335,3.2078,2541.2,2541.1,0.39374]
[1729799490156,1.259,2541.3,2540.9,2.35982]
[1729799490366,1.3441,2541.4,2541.3,0.39371]
[1729799490553,1.2476,2541.7,2541.6,0.39366]
[1729799490856,2.5635,2541.7,2541.6,0.39366]
[1729799491058,3.2078,2541.9,2541.8,0.39363]
[1729799492352,5.97445445,2541.9,2541.8,0.39363]
[1729799494571,5.97445445,2541.9,2541.5,2.33189]
[1729799494864,5.97445445,2541.9,2541.8,0.39363]
[1729799495269,7.32605445,2541.9,2541.8,0.39363]
[1729799496864,3.2078,2541.9,2541.8,0.39363]
[1729799497958,0.39364,2541.8,2541.7,0.39364]
[1729799498168,0.39364,2541.8,2540.6,2.76665445]
[1729799498169,3.75074445,2541.8,2540.6,2.76665445]
[1729799498465,2.76665445,2541.6,2541.1,0.98436]
[1729799498658,3.16032445,2541.6,2541.5,0.39368]
[1729799499255,2.76665445,2541.6,2541.2,4.19212]
[1729799499460,2.76665445,2541.6,2541.4,0.39368]
[1729799499661,3.16033445,2541.6,2541.4,0.39368]
[1729799499857,0.3937,2541.4,2541.3,0.3937]
[1729799500063,0.3937,2541.4,2541.3,0.39371]
[1729799500466,3.16032445,2541.6,2541.5,0.39368]
[1729799500866,2.76665445,2541.6,2541.2,3.2078]
[1729799501062,0.39374,2541.2,2541.0,0.39375]
[1729799501265,3.08224,2541.1,2541.0,0.39375]
[1729799501463,3.08224,2541.1,2540.6,3.2078]
[1729799501464,9.78982957,2541.1,2540.6,3.2078]
[1729799501670,2.76665445,2540.8,2540.7,0.3938]
[1729799503972,3.60156,2541.0,2540.4,5.07033]
[1729799504268,3.60156,2541.0,2540.9,0.39377]
[1729799504670,3.60156,2541.0,2540.8,0.39378]
[1729799504671,0.39378,2540.9,2540.8,0.39378]
[1729799504858,3.2078,2541.0,2540.5,0.98459]
[1729799505059,2.6885,2541.1,2541.0,0.39376]
[1729799506862,2.76665445,2541.4,2541.3,0.39371]
[1729799507061,3.2229297,2541.4,2541.0,0.39376]
[1729799507264,3.16034445,2541.4,2541.0,0.39376]
[1729799507868,3.16034445,2541.4,2541.3,0.39371]
[1729799508067,6.36814445,2541.4,2541.3,0.39371]
[1729799508264,2.6,2541.5,2541.1,4.19215]
[1729799508471,2.6,2541.5,2541.4,0.39369]
[1729799508668,5.36665445,2541.5,2541.4,0.39369]
[1729799508862,5.36665445,2541.5,2541.2,1.3642]
[1729799509064,5.76033445,2541.5,2541.4,0.39369]
[1729799510267,5.76033445,2541.5,2541.2,1.3642]
[1729799510570,5.76033445,2541.5,2541.3,0.3937]
[1729799510768,0.39369,2541.4,2541.3,0.3937]
[1729799510975,4.39831004,2541.4,2540.9,2.6686]
[1729799511171,3.16040445,2541.1,2541.0,0.39376]
[1729799511567,6.55395445,2541.1,2540.6,2.30703]
[1729799511775,6.94769445,2541.1,2541.0,0.39376]
[1729799512076,6.94770445,2541.1,2540.9,0.39376]
[1729799512275,6.55395445,2541.1,2541.0,0.39376]
[1729799513968,6.94769445,2541.1,2541.0,0.39376]
[1729799514274,6.55395445,2541.1,2540.6,2.30703]
[1729799514676,6.94770445,2541.1,2541.0,0.39376]
[1729799515563,6.55395445,2541.1,2540.6,1.3225]
[1729799515764,3.16043445,2540.9,2540.8,0.39377]
[1729799516175,2.76665445,2540.9,2540.8,0.39377]
[1729799517072,11.21903832,2540.9,2540.8,0.39379]
[1729799518070,10.82525832,2540.9,2540.4,3.2078]
[1729799518273,0.39379,2540.8,2540.7,0.39379]
[1729799518472,4.12260387,2540.9,2540.4,4.19242]
[1729799518676,5.34495445,2540.7,2540.6,0.39382]
[1729799520474,2.76665445,2541.2,2540.6,4.32982]
[1729799520778,3.16035445,2541.4,2541.3,0.39371]
[1729799521082,7.14995242,2541.4,2541.3,0.39371]
[1729799521279,11.47884242,2541.4,2540.9,0.9844]
[1729799521584,11.47884242,2541.4,2541.1,0.39374]
[1729799521585,2.76665445,2541.2,2541.1,0.39374]
[1729799523785,2.76665445,2541.4,2541.1,0.39374]
[1729799523978,2.76665445,2541.4,2541.3,0.39371]
[1729799524286,7.21987717,2541.4,2541.3,0.39371]
[1729799524579,11.54876717,2541.4,2541.3,0.39371]
[1729799524769,2.76665445,2541.4,2541.3,0.39371]
[1729799525673,3.03319,2541.5,2541.2,4.0248]
[1729799525874,2.76665445,2541.6,2541.5,0.39368]
[1729799526474,10.96336421,2541.6,2541.2,2.6994]
[1729799526690,3.16035445,2541.4,2541.3,0.39371]
[1729799526984,3.16035445,2541.4,2541.2,2.6994]
[1729799527181,2.76665445,2541.4,2541.3,0.39371]
[1729799527578,3.16034445,2541.4,2541.3,0.39371]
[1729799527974,3.16034445,2541.4,2541.2,2.6994]
[1729799528186,0.39373,2541.2,2541.0,3.2078]
[1729799528377,2.76665445,2541.1,2541.0,0.39375]
[1729799529079,3.16039445,2541.1,2541.0,0.39375]
[1729799529280,2.76665445,2541.1,2541.0,0.39375]
[1729799529874,1.363,2541.3,2540.9,3.9956]
[1729799529875,4.12965445,2541.3,2540.9,3.9956]
[1729799530180,2.76665445,2541.3,2541.2,0.39372]
[1729799530389,3.2078,2541.4,2541.3,0.39371]
[1729799532176,2.76665445,2541.7,2541.6,0.39366]
[1729799534686,3.16030445,2541.7,2541.6,0.39366]
[1729799534990,3.16030445,2541.7,2541.4,1.3162]
[1729799534991,12.08389526,2541.7,2540.8,2.94388]
[1729799535185,2.76665445,2541.2,2540.9,3.65013]
[1729799535387,2.76665445,2541.2,2540.9,2.6657]
[1729799535688,5.84188445,2541.2,2541.1,0.39374]
[1729799535889,5.44815445,2541.2,2541.1,0.39374]
[1729799536185,5.84187445,2541.2,2541.1,0.39374]
[1729799536384,5.44815445,2541.2,2541.1,0.39374]
[1729799536887,0.39374,2541.1,2541.0,0.39375]
[1729799537191,5.84189445,2541.2,2541.1,0.39374]
[1729799537685,5.84189445,2541.2,2540.9,2.6657]
[1729799537686,0.39376,2541.0,2540.9,0.39376]
[1729799537985,2.76665445,2541.0,2540.9,0.39376]
[1729799538593,3.16041445,2541.0,2540.9,0.39376]
[1729799538992,2.76665445,2541.0,2540.9,0.39376]
[1729799539393,3.16041445,2541.0,2540.9,0.39376]
[1729799540691,2.76665445,2541.0,2540.9,0.39376]
[1729799541096,3.16041445,2541.0,2540.9,0.39376]
[1729799542193,2.76665445,2541.0,2540.9,0.39376]
[1729799542387,3.16041445,2541.0,2540.9,0.39376]
[1729799543187,2.76665445,2541.0,2540.9,0.39376]
[1729799543389,3.16041445,2541.0,2540.9,0.39376]
[1729799544390,3.16041445,2541.0,2540.6,2.30075]
[1729799544591,3.16041445,2541.0,2540.9,0.39377]
[1729799544786,4.70021834,2540.9,2540.8,0.39378]
[1729799544991,0.39379,2540.8,2540.6,1.71001]
[1729799545193,2.76665445,2540.7,2540.2,3.2078]
[1729799545394,2.76665445,2540.3,2540.2,3.60168]
[1729799545595,2.76665445,2540.3,2540.2,3.2078]
[1729799545894,12.4378083,2540.3,2539.9,4.5655]
[1729799546096,8.5010083,2540.3,2540.2,0.39388]
[1729799546299,0.39388,2540.2,2540.0,0.3939]
[1729799546495,8.5010083,2540.3,2539.9,5.8456]
[1729799546699,8.5010083,2540.3,2540.1,0.39388]
[1729799546700,1.76638,2540.2,2540.1,0.39388]
[1729799547094,1.3725,2540.2,2540.1,0.39388]
[1729799547503,1.3725,2540.2,2539.9,5.8456]
[1729799547699,2.76665445,2540.1,2540.0,0.3939]
[1729799547900,2.76665445,2540.1,2539.8,2.30824]
[1729799547901,2.76665445,2540.1,2539.8,1.3234]
[1729799548201,0.39392,2540.0,2539.9,0.39393]
[1729799548599,7.16695632,2540.1,2539.7,1.3389]
[1729799548803,2.76665445,2539.9,2539.8,0.39394]
[1729799549494,4.08585445,2539.9,2539.8,0.39394]
[1729799549696,4.47978445,2539.9,2539.8,0.39394]
[1729799550000,4.08585445,2539.9,2539.8,0.51714758]
[1729799550197,4.47978445,2539.9,2539.8,0.12320758]
[1729799550401,15.96610815,2539.9,2539.8,0.12320758]
[1729799551494,0.394,2539.4,2539.3,1.01140111]
[1729799551698,2.76665445,2539.5,2538.9,1.93263496]
[1729799551901,2.76665445,2539.0,2538.9,2.32670496]
[1729799553300,3.16072445,2539.0,2538.9,2.32671496]
[1729799553604,2.76665445,2539.0,2538.9,2.32671496]
[1729799557009,2.76665445,2539.0,2538.9,1.71728]
[1729799557408,3.16072445,2539.0,2538.9,1.71728]
[1729799557799,2.76665445,2539.0,2538.9,1.71728]
[1729799559097,2.76665445,2539.4,2538.9,8.4694]
[1729799559301,2.76665445,2539.4,2539.3,0.39402]
[1729799569218,2.76665445,2539.4,2539.2,2.96063]
[1729799569219,0.39402,2539.3,2539.2,2.96063]
[1729799569520,2.76665445,2539.4,2539.3,0.39402]
[1729799570523,5.97445445,2539.6,2539.5,0.39399]
[1729799571517,1.354,2539.8,2539.5,0.39399]
[1729799571518,2.76665445,2539.8,2539.7,0.39396]
[1729799571914,2.76665445,2539.8,2539.7,4.33156]
[1729799572218,4.08535445,2540.0,2539.9,0.39392]
[1729799572423,2.76665445,2540.0,2539.9,0.39392]
[1729799572623,2.76665445,2540.2,2540.1,0.39389]
[1729799581221,1.3119,2540.4,2540.3,0.39386]
[1729799581523,2.76665445,2540.5,2540.4,0.39384]
[1729799582233,3.16048445,2540.5,2540.4,0.39384]
[1729799582517,2.76665445,2540.5,2540.4,0.39384]
[1729799582723,2.76665445,2540.5,2540.2,0.39387]
[1729799582724,0.39386,2540.4,2540.2,0.39387]
[1729799582925,4.11095445,2540.3,2540.2,0.39387]
[1729799583127,5.38205445,2540.3,2540.2,0.39387]
[1729799584124,5.77591445,2540.3,2540.2,0.39387]
[1729799584421,5.38205445,2540.3,2540.2,0.39387]
[1729799585025,5.77591445,2540.3,2540.2,0.39387]
[1729799585324,5.38205445,2540.3,2540.2,0.39387]
[1729799587020,4.11095445,2540.3,2540.2,0.39387]
[1729799591223,4.5863,2540.5,2539.9,1.2949]
[1729799591224,5.97445445,2540.5,2539.9,1.2949]
[1729799591426,5.97445445,2540.5,2540.4,0.39384]
[1729799592829,2.76665445,2540.5,2540.4,0.39384]
[1729799593526,2.76665445,2540.7,2540.4,0.39384]
[1729799593827,2.76665445,2540.7,2540.6,0.39381]
[1729799601943,0.39385,2540.5,2540.4,0.39383]
[1729799602245,3.16048445,2540.5,2540.4,0.39384]
[1729799603444,2.76665445,2540.5,2540.4,0.39384]
[1729799603741,3.16048445,2540.5,2540.4,0.39384]
[1729799605842,2.76665445,2540.5,2540.4,0.39384]
[1729799606146,3.16048445,2540.5,2540.4,0.39384]
[1729799606943,2.76665445,2540.5,2540.4,0.39384]
[1729799608042,3.16048445,2540.5,2540.4,0.39384]
[1729799608450,2.76665445,2540.5,2540.4,0.39384]
[1729799608651,3.16048445,2540.5,2540.4,0.39384]
[1729799608948,2.76665445,2540.5,2540.1,0.98471]
[1729799609153,1.3388,2540.4,2540.0,3.8618]
[1729799609341,2.76665445,2540.1,2540.0,0.39391]
[1729799609747,4.14515445,2540.1,2540.0,0.39391]
[1729799609948,1.3785,2540.1,2540.0,0.39391]
[1729799610853,2.76665445,2540.3,2540.2,0.39387]
[1729799611157,4.14515445,2540.3,2540.2,0.39387]
[1729799612255,12.54112047,2540.3,2539.8,0.98485]
[1729799612454,5.97445445,2540.1,2540.0,0.39391]
[1729799613151,7.34235445,2540.1,2540.0,0.39391]
[1729799613352,7.73624445,2540.1,2540.0,0.39391]
[1729799613551,7.73624445,2540.1,2539.7,0.98487]
[1729799613751,1.2867,2540.0,2539.9,0.39391]
[1729799614765,1.3785,2540.3,2540.2,0.39388]
[1729799614951,2.6933,2540.3,2540.2,0.39388]
[1729799615448,3.08716,2540.3,2540.2,0.39388]
[1729799617151,2.6933,2540.3,2540.2,0.39388]
[1729799619453,5.45995445,2540.3,2540.2,0.39388]
[1729799619853,5.45995445,2540.3,2539.8,6.74134]
[1729799620055,1.3156,2540.2,2540.1,0.39387]
[1729799620259,1.70947,2540.2,2540.1,0.39387]
[1729799620559,1.70949,2540.2,2540.1,0.39389]
[1729799621659,1.70949,2540.2,2539.9,0.39392]
[1729799621660,0.39392,2540.0,2539.9,0.39392]
[1729799622955,5.97445445,2540.1,2540.0,0.39391]
[1729799622956,6.36835445,2540.1,2540.0,0.39391]
[1729799623467,1.70948,2540.2,2540.1,0.39389]
[1729799623653,1.3156,2540.2,2540.1,0.39389]
[1729799624057,1.70947,2540.2,2540.1,0.39389]
[1729799625269,5.85382445,2540.3,2540.2,0.39387]
[1729799625759,0.39388,2540.2,2540.1,0.39388]
[1729799627062,5.45995445,2540.3,2540.0,1.3138]
[1729799627269,0.39389,2540.1,2540.0,1.7077]
[1729799627459,0.39389,2540.1,2540.0,0.3939]
[1729799627768,0.39391,2540.0,2539.9,0.39391]
[1729799627957,3.16055445,2540.1,2540.0,0.39391]
[1729799628368,0.39391,2540.0,2539.9,0.39391]
[1729799628665,1.27737028,2540.0,2539.9,0.39391]
[1729799629066,1.67128028,2540.0,2539.9,0.39391]
[1729799629255,1.27737028,2540.0,2539.9,0.39391]
[1729799637380,0.39388,2540.2,2540.1,0.39389]
[1729799637568,1.27737028,2540.2,2540.1,0.39389]
[1729799637768,0.98447,2540.8,2540.1,0.39389]
[1729799637769,3.2078,2541.0,2540.8,0.39377]
[1729799638080,3.88737028,2540.9,2540.8,0.39377]
[1729799638271,2.59737028,2540.9,2540.8,0.39377]
[1729799638471,1.27737028,2540.9,2540.8,0.39377]
[1729799639766,3.2078,2541.0,2540.9,0.39377]
[1729799640067,4.48517028,2541.0,2540.9,0.39377]
[1729799640272,2.76653386,2541.0,2540.9,0.39377]
[1729799640677,2.76653386,2541.0,2540.7,4.944]
[1729799640678,3.16029386,2541.0,2540.8,0.39377]
[1729799640979,2.76653386,2541.0,2540.8,0.39377]
[1729799641277,1.2462,2540.9,2540.8,0.39377]
[1729799641477,1.63997,2540.9,2540.8,0.39377]
[1729799641675,1.63997,2540.9,2540.5,1.3629]
[1729799641676,5.1822,2540.9,2540.5,1.3629]
[1729799641976,5.1822,2540.9,2540.7,0.3938]
[1729799641977,3.00548,2540.8,2540.7,0.3938]
[1729799642171,3.00548,2540.8,2540.6,0.3938]
[1729799642172,5.77201386,2540.8,2540.6,0.3938]
[1729799642475,5.37823386,2540.8,2540.4,1.3571]
[1729799642775,3.16035386,2540.6,2540.5,0.39383]
[1729799643678,2.76653386,2540.6,2540.5,0.39383]
[1729799647785,3.16034386,2540.6,2540.4,0.39383]
[1729799647978,7.24893386,2540.5,2540.4,0.39384]
[1729799648283,11.71947229,2540.5,2540.4,0.39384]
[1729799648580,15.65547229,2540.5,2540.4,0.39384]
[1729799648771,11.71947229,2540.5,2540.4,0.39384]
[1729799649378,15.65547229,2540.5,2540.4,0.39384]
[1729799649880,15.65547229,2540.5,2540.3,1.3317]
[1729799649881,15.65547229,2540.5,2540.3,0.39385]
[1729799650074,3.09745,2540.4,2540.2,0.39386]
[1729799650275,2.7036,2540.4,2540.3,0.39386]
[1729799650475,1.3705,2540.4,2540.3,0.39386]
[1729799651579,2.76653386,2540.7,2540.2,0.98468]
[1729799651781,5.90443386,2540.7,2540.6,0.39381]
[1729799652079,10.41489157,2540.7,2540.6,0.39381]
[1729799652478,13.95709157,2540.7,2540.3,1.2501]
[1729799652670,3.16038386,2540.4,2540.1,3.2078]
[1729799652868,2.7441,2540.3,2540.2,0.39386]
[1729799656876,2.7441,2540.3,2540.0,2.6067]
[1729799657180,2.7441,2540.3,2540.1,0.39388]
[1729799657181,3.16041386,2540.2,2540.1,0.39388]
[1729799657382,2.76653386,2540.2,2540.1,0.39388]
[1729799658385,2.76653386,2540.2,2540.0,0.3939]
[1729799658582,3.16043386,2540.1,2540.0,0.3939]
[1729799659381,0.39391,2540.0,2539.9,0.39391]
[1729799659684,1.69991,2540.0,2539.9,0.39391]
[1729799659985,1.306,2540.0,2539.9,0.39391]
[1729799661392,1.6999,2540.0,2539.9,0.39391]
[1729799662376,2.97728868,2540.0,2539.9,0.39391]
[1729799663285,2.58338868,2540.0,2539.9,0.39391]
[1729799663585,1.27738868,2540.0,2539.9,0.39391]
[1729799663782,1.27738868,2540.0,2539.9,1.67130868]